fUST/lending_fUST_20250623
["ID","MTS","AMOUNT","RATE_DAILY","PERIOD"]
[367021245,1750618339614,-460.0,0.00042739,120]
[367021246,1750618339667,-460.0,0.00042739,120]
[367021247,1750618339717,-1302.28,0.00042739,120]
[367021249,1750618339769,-464.0,0.00042739,120]
[367021250,1750618339820,-832.9,0.00042739,120]
[367021252,1750618339867,-624.68,0.00042739,120]
[367021254,1750618339910,-460.0,0.00042739,120]
[367021255,1750618339956,-1011.44,0.00042739,120]
[367021256,1750618340006,-460.0,0.00042739,120]
[367021258,1750618340057,-1005.62,0.00042739,120]
[367021259,1750618340108,-460.0,0.00042739,120]
[367021261,1750618340161,-514.38027467,0.00042739,120]
[367021264,1750618340211,-460.0,0.00042739,120]
[367021265,1750618340261,-460.0,0.00042739,120]
[367021267,1750618340312,-460.0,0.00042739,120]
[367021268,1750618340357,-460.0,0.00042739,120]
[367021269,1750618340403,-460.0,0.00042739,120]
[367021270,1750618340449,-851.34,0.00042739,120]
[367021271,1750618340496,-856.64,0.00042739,120]
[367021272,1750618340545,-460.0,0.00042739,120]
[367021274,1750618340595,-493.28,0.00042739,120]
[367021276,1750618340638,-350.0,0.00042739,120]
[367021277,1750618340685,-460.0,0.00042739,120]
[367021278,1750618340733,-460.0,0.00042739,120]
[367021279,1750618340782,-460.0,0.00042739,120]
[367021280,1750618340968,-383.26803976,0.00042739,120]
[367021281,1750618341017,-752.46,0.00042739,120]
[367021282,1750618341064,-580.34,0.00042739,120]
[367021283,1750618341111,-762.42,0.00042739,120]
[367021284,1750618341161,-460.0,0.00042739,120]
[367021285,1750618341210,-460.0,0.00042739,120]
[367021286,1750618341258,-1076.55,0.00042739,120]
[367021287,1750618341304,-460.0,0.00042739,120]
[367021288,1750618341353,-460.0,0.00042739,120]
[367021289,1750618341403,-460.0,0.00042739,120]
[367021291,1750618341449,-500.0,0.00042739,120]
[367021293,1750618341497,-601.92215963,0.00042739,120]
[367021294,1750618341547,-1783.95,0.00042739,120]
[367021295,1750618341597,-977.24,0.00042739,120]
[367021297,1750618341641,-8894.79,0.00042739,120]
[367021298,1750618341685,-1760.96,0.00042739,120]
[367021300,1750618341726,-206.62653793,0.00042739,120]
[367021301,1750618341774,-460.0,0.00042739,120]
[367021303,1750618341822,-460.0,0.00042739,120]
[367021304,1750618341870,-460.0,0.00042739,120]
[367021306,1750618341911,-263.83723393,0.00042739,120]
[367021308,1750618341951,-2867.12,0.00042739,120]
[367021309,1750618341993,-586.65,0.00042739,120]
[367021310,1750618342036,-1409.36,0.00042739,120]
[367021311,1750618342080,-471.05,0.00042739,120]
[367021312,1750618342125,-633.38,0.00042739,120]
[367021314,1750618342174,-460.0,0.00042739,120]
[367021315,1750618342222,-460.0,0.00042739,120]
[367021317,1750618342268,-150.38,0.00042739,120]
[367021318,1750618342314,-460.0,0.00042739,120]
[367021320,1750618342370,-460.0,0.00042739,120]
[367021321,1750618342421,-2000.81,0.00042739,120]
[367021323,1750618342467,-688.84,0.00042739,120]
[367021324,1750618342520,-460.0,0.00042739,120]
[367021325,1750618342571,-482.19,0.00042739,120]
[367021326,1750618342621,-460.0,0.00042739,120]
[367021327,1750618342671,-484.12,0.00042739,120]
[367021328,1750618342720,-460.0,0.00042739,120]
[367021329,1750618342771,-554.76,0.00042739,120]
[367021331,1750618342815,-460.0,0.00042739,120]
[367021333,1750618342859,-460.0,0.00042739,120]
[367021334,1750618342903,-494.79,0.00042739,120]
[367021335,1750618342950,-460.0,0.00042739,120]
[367021336,1750618342999,-460.0,0.00042739,120]
[367021337,1750618343047,-2426.2,0.00042739,120]
[367021339,1750618343087,-1143.89,0.00042739,120]
[367021341,1750618343127,-460.0,0.00042739,120]
[367021342,1750618343168,-1046.85,0.00042739,120]
[367021344,1750618343207,-925.84,0.00042739,120]
[367021346,1750618343247,-597.73,0.00042739,120]
[367021347,1750618343289,-11265.91,0.00042739,120]
[367021349,1750618343328,-460.0,0.00042739,120]
[367021351,1750618343367,-6160.7,0.00042739,120]
[367021353,1750618343405,-460.0,0.00042739,120]
[367021354,1750618343447,-491.04,0.00042739,120]
[367021355,1750618343490,-1189.67,0.00042739,120]
[367021357,1750618343531,-1798.04,0.00042739,30]
[367021358,1750618343583,-470.58,0.00042739,120]
[367021360,1750618343627,-3579.12,0.00042739,120]
[367021361,1750618343675,-1249.6,0.00042739,120]
[367021363,1750618343722,-10666.48,0.00042739,120]
[367021365,1750618343769,-460.0,0.00042739,120]
[367021366,1750618343818,-1777.05,0.00042739,120]
[367021367,1750618343870,-582.51,0.00042739,120]
[367021369,1750618343917,-460.0,0.00042739,120]
[367021370,1750618343966,-1267.32,0.00042739,120]
[367021371,1750618344014,-544.23,0.00042739,120]
[367021373,1750618344058,-460.0,0.00042739,120]
[367021375,1750618344103,-460.0,0.00042739,120]
[367021377,1750618344145,-460.0,0.00042739,120]
[367021379,1750618344186,-460.0,0.00042739,120]
[367021380,1750618344232,-485.02,0.00042739,120]
[367021382,1750618344282,-2652.41,0.00042739,120]
[367021384,1750618344329,-460.0,0.00042739,120]
[367021386,1750618344370,-460.0,0.00042739,120]
[367021387,1750618344416,-579.35,0.00042739,120]
[367021389,1750618344463,-724.13,0.00042739,120]
[367021390,1750618344510,-460.0,0.00042739,120]
[367021391,1750618344558,-475.23,0.00042739,120]
[367021392,1750618344606,-3283.97,0.00042739,120]
[367021393,1750618344655,-460.0,0.00042739,120]
[367021394,1750618344706,-8136.01,0.00042739,120]
[367021396,1750618344754,-1594.18,0.00042739,120]
[367021397,1750618344805,-460.0,0.00042739,120]
[367021399,1750618344857,-460.0,0.00042739,120]
[367021401,1750618344904,-683.88,0.00042739,120]
[367021402,1750618344957,-528.57,0.00042739,120]
[367021403,1750618345008,-3929.24,0.00042739,120]
[367021404,1750618345058,-460.0,0.00042739,30]
[367021405,1750618345106,-1876.21,0.00042739,120]
[367021406,1750618345158,-460.0,0.00042739,120]
[367021407,1750618345210,-603.53,0.00042739,120]
[367021408,1750618345259,-460.0,0.00042739,120]
[367021409,1750618345307,-6261.38,0.00042739,120]
[367021411,1750618345500,-769.92,0.00042739,120]
[367021413,1750618345556,-7683.05,0.00042739,120]
[367021415,1750618345604,-460.0,0.00042739,120]
[367021416,1750618345654,-460.0,0.00042739,120]
[367021417,1750618345703,-666.34,0.00042739,120]
[367021418,1750618345758,-460.0,0.00042739,120]
[367021420,1750618345811,-521.15,0.00042739,120]
[367021422,1750618345865,-460.0,0.00042739,120]
[367021423,1750618345923,-12955.9,0.00042739,120]
[367021425,1750618345978,-314.5,0.00042824,120]
[367021426,1750618346030,-200.0,0.00042899,120]
[367021427,1750618346082,-5000.0,0.000429,95]
[367021429,1750618346130,-2111.0,0.00043,120]
[367021431,1750618346173,-1000.0,0.00043,120]
[367021433,1750618346214,-3005.5348473,0.00043,60]
[367021434,1750618346259,-160.0,0.00043,120]
[367021436,1750618346300,-518.48,0.00043013,120]
[367021438,1750618346340,-460.0,0.00043013,120]
[367021440,1750618346382,-460.0,0.00043013,120]
[367021441,1750618346429,-275.05065314,0.00043013,120]
[367021443,1750618346476,-460.0,0.00043013,120]
[367021445,1750618346517,-460.0,0.00043013,120]
[367021446,1750618346560,-1226.97,0.00043013,120]
[367021448,1750618346609,-460.0,0.00043013,120]
[367021450,1750618346655,-378.42377838,0.00043013,120]
[367021452,1750618346700,-460.0,0.00043013,120]
[367021453,1750618346750,-460.0,0.00043013,120]
[367021454,1750618346801,-460.0,0.00043013,120]
[367021455,1750618346851,-460.0,0.00043013,120]
[367021456,1750618346903,-460.0,0.00043013,120]
[367021457,1750618346955,-460.0,0.00043013,120]
[367021458,1750618347005,-460.0,0.00043013,120]
[367021459,1750618347052,-482.98784133,0.00043013,120]
[367021460,1750618347101,-360.18983246,0.00043013,120]
[367021461,1750618347148,-460.0,0.00043013,120]
[367021462,1750618347195,-460.0,0.00043013,120]
[367021464,1750618347236,-460.0,0.00043013,120]
[367021466,1750618347277,-226.92415951,0.00043013,120]
[367021467,1750618347320,-460.0,0.00043013,120]
[367021468,1750618347364,-692.24,0.00043013,120]
[367021470,1750618347414,-460.0,0.00043013,120]
[367021471,1750618347462,-460.0,0.00043013,120]
[367021472,1750618347513,-460.0,0.00043013,120]
[367021474,1750618347563,-460.0,0.00043013,120]
[367021476,1750618347607,-460.0,0.00043013,120]
[367021477,1750618347659,-555.51,0.00043013,120]
[367021479,1750618347710,-532.37,0.00043013,120]
[367021481,1750618347755,-460.0,0.00043013,120]
[367021482,1750618347806,-719.72,0.00043013,120]
[367021483,1750618347853,-460.0,0.00043013,120]
[367021485,1750618347900,-1268.62,0.00043013,120]
[367021487,1750618347945,-460.0,0.00043013,120]
[367021488,1750618347993,-460.0,0.00043013,120]
[367021490,1750618348033,-726.12,0.00043013,120]
[367021491,1750618348072,-924.87,0.00043013,120]
[367021493,1750618348114,-460.0,0.00043013,120]
[367021494,1750618348155,-575.61,0.00043013,120]
[367021495,1750618348196,-471.46,0.00043013,120]
[367021497,1750618348236,-515.87976678,0.00043013,120]
[367021498,1750618348279,-460.0,0.00043013,120]
[367021499,1750618348321,-460.0,0.00043013,120]
[367021500,1750618348366,-460.0,0.00043013,120]
[367021502,1750618348411,-460.0,0.00043013,120]
[367021503,1750618348458,-554.94,0.00043013,120]
[367021504,1750618348505,-531.81,0.00043013,120]
[367021505,1750618348552,-626.48,0.00043013,120]
[367021506,1750618348598,-460.0,0.00043013,120]
[367021507,1750618348647,-460.0,0.00043013,120]
[367021508,1750618348697,-460.0,0.00043013,120]
[367021509,1750618348746,-460.0,0.00043013,120]
[367021510,1750618348793,-460.0,0.00043013,120]
[367021511,1750618348840,-378.90697352,0.00043013,120]
[367021512,1750618348887,-460.0,0.00043013,120]
[367021514,1750618348928,-302.77446442,0.00043013,120]
[367021515,1750618348971,-733.82,0.00043013,120]
[367021516,1750618349014,-500.0,0.00043013,14]
[367021517,1750618349059,-463.12,0.00043013,120]
[367021519,1750618349102,-636.64,0.00043013,120]
[367021521,1750618349142,-1059.62,0.00043013,120]
[367021522,1750618349185,-460.0,0.00043013,120]
[367021523,1750618349229,-460.0,0.00043013,120]
[367021524,1750618349272,-460.0,0.00043013,120]
[367021525,1750618349316,-3646.26,0.00043013,120]
[367021526,1750618349360,-460.0,0.00043013,120]
[367021527,1750618349404,-477.42,0.00043013,120]
[367021528,1750618349449,-460.0,0.00043013,120]
[367021529,1750618349500,-460.0,0.00043013,120]
[367021530,1750618349551,-460.0,0.00043013,120]
[367021531,1750618349601,-460.0,0.00043013,120]
[367021532,1750618349651,-460.0,0.00043013,120]
[367021533,1750618349704,-460.0,0.00043013,120]
[367021534,1750618349754,-460.0,0.00043013,120]
[367021535,1750618349805,-569.76,0.00043013,120]
[367021536,1750618349857,-462.94,0.00043013,120]
[367021537,1750618349909,-460.0,0.00043013,120]
[367021539,1750618350119,-467.65,0.00043013,120]
[367021540,1750618350168,-460.0,0.00043013,120]
[367021542,1750618350209,-460.0,0.00043013,120]
[367021544,1750618350251,-460.0,0.00043013,120]
[367021545,1750618350300,-567.25,0.00043013,120]
[367021547,1750618350349,-460.0,0.00043013,120]
[367021549,1750618350392,-460.0,0.00043013,120]
[367021551,1750618350434,-641.12,0.00043013,120]
[367021553,1750618350475,-549.75803748,0.00043013,120]
[367021554,1750618350519,-150.06763191,0.00043013,120]
[367021555,1750618350568,-460.0,0.00043013,120]
[367021556,1750618350615,-1004.95,0.00043013,120]
[367021557,1750618350664,-460.0,0.00043013,120]
[367021558,1750618350712,-460.0,0.00043013,120]
[367021559,1750618350759,-460.0,0.00043013,120]
[367021560,1750618350809,-2639.78,0.00043013,120]
[367021561,1750618350857,-460.0,0.00043013,120]
[367021562,1750618350905,-616.99,0.00043013,120]
[367021563,1750618350952,-2242.43,0.00043013,120]
[367021564,1750618351006,-460.0,0.00043013,120]
[367021565,1750618351055,-612.4,0.00043013,120]
[367021566,1750618351104,-460.0,0.00043013,120]
[367021567,1750618351153,-783.25,0.00043013,120]
[367021568,1750618351198,-460.0,0.00043013,120]
[367021569,1750618351241,-460.0,0.00043013,120]
[367021570,1750618351286,-460.0,0.00043013,120]
[367021571,1750618351331,-460.0,0.00043013,120]
[367021572,1750618351378,-460.0,0.00043013,120]
[367021573,1750618351425,-460.0,0.00043013,120]
[367021574,1750618351472,-527.87944139,0.00043013,120]
[367021575,1750618351518,-460.0,0.00043013,120]
[367021576,1750618351562,-502.89,0.00043013,120]
[367021577,1750618351608,-460.0,0.00043013,120]
[367021578,1750618351656,-754.1,0.00043013,120]
[367021579,1750618351703,-460.0,0.00043013,120]
[367021580,1750618351750,-460.0,0.00043013,120]
[367021581,1750618351798,-460.0,0.00043013,120]
[367021582,1750618351847,-822.18,0.00043013,120]
[367021583,1750618351897,-460.0,0.00043013,120]
[367021584,1750618351946,-460.0,0.00043013,120]
[367021585,1750618351995,-460.0,0.00043013,120]
[367021586,1750618352046,-460.0,0.00043013,120]
[367021587,1750618352098,-460.0,0.00043013,120]
[367021588,1750618352151,-460.0,0.00043013,120]
[367021589,1750618352200,-437.34639577,0.00043013,120]
[367021590,1750618352248,-639.38,0.00043013,120]
[367021591,1750618352297,-460.0,0.00043013,120]
[367021592,1750618352355,-460.0,0.00043013,120]
[367021593,1750618352408,-460.0,0.00043013,120]
[367021594,1750618352460,-1320.19,0.00043013,120]
[367021595,1750618352512,-538.59,0.00043013,120]
[367021596,1750618352561,-572.63,0.00043013,120]
[367021597,1750618352616,-460.0,0.00043013,120]
[367021598,1750618352669,-557.55921707,0.00043013,120]
[367021599,1750618352718,-460.0,0.00043013,120]
[367021600,1750618352767,-460.0,0.00043013,120]
[367021601,1750618352817,-993.43,0.00043013,120]
[367021602,1750618352866,-460.0,0.00043013,120]
[367021603,1750618352913,-460.0,0.00043013,120]
[367021604,1750618352959,-460.0,0.00043013,120]
[367021605,1750618353008,-460.0,0.00043013,120]
[367021606,1750618353057,-966.4,0.00043013,120]
[367021607,1750618353105,-460.0,0.00043013,120]
[367021608,1750618353154,-460.0,0.00043013,120]
[367021609,1750618353203,-387.72556809,0.00043013,120]
[367021610,1750618353255,-460.0,0.00043013,120]
[367021611,1750618353307,-460.0,0.00043013,120]
[367021612,1750618353360,-460.0,0.00043013,120]
[367021613,1750618353413,-460.0,0.00043013,120]
[367021614,1750618353468,-460.0,0.00043013,120]
[367021615,1750618353523,-460.0,0.00043013,120]
[367021616,1750618353577,-460.0,0.00043013,120]
[367021617,1750618353637,-460.0,0.00043013,120]
[367021618,1750618353694,-460.0,0.00043013,120]
[367021619,1750618353751,-1302.28,0.00043013,120]
[367021620,1750618353807,-464.0,0.00043013,120]
[367021621,1750618353861,-832.9,0.00043013,120]
[367021622,1750618353913,-624.68,0.00043013,120]
[367021623,1750618353965,-460.0,0.00043013,120]
[367021624,1750618354016,-1011.44,0.00043013,120]
[367021625,1750618354065,-460.0,0.00043013,120]
[367021626,1750618354114,-460.0,0.00043013,120]
[367021627,1750618354164,-460.0,0.00043013,120]
[367021628,1750618354213,-1005.62,0.00043013,120]
[367021629,1750618354262,-460.0,0.00043013,120]
[367021630,1750618354311,-460.0,0.00043013,120]
[367021631,1750618354359,-460.0,0.00043013,120]
[367021632,1750618354408,-495.52,0.00043013,120]
[367021633,1750618354458,-851.34,0.00043013,120]
[367021634,1750618354508,-856.64,0.00043013,120]
[367021635,1750618354558,-460.0,0.00043013,120]
[367021636,1750618354607,-493.28,0.00043013,120]
[367021637,1750618354655,-172.3810877,0.00043013,120]
[367021638,1750618354705,-460.0,0.00043013,120]
[367021639,1750618354901,-460.0,0.00043013,120]
[367021640,1750618354952,-752.46,0.00043013,120]
[367021641,1750618355007,-580.34,0.00043013,120]
[367021642,1750618355059,-762.42,0.00043013,120]
[367021643,1750618355110,-584.23597407,0.00043013,120]
[367021644,1750618355163,-537.12011061,0.00043013,120]
[367021645,1750618355215,-1076.55,0.00043013,120]
[367021646,1750618355267,-460.0,0.00043013,120]
[367021647,1750618355317,-460.0,0.00043013,120]
[367021648,1750618355368,-484.12415943,0.00043013,120]
[367021649,1750618355417,-500.0,0.00043013,120]
[367021650,1750618355468,-1783.95,0.00043013,120]
[367021651,1750618355519,-977.24,0.00043013,120]
[367021652,1750618355571,-8894.79,0.00043013,120]
[367021653,1750618355622,-1760.96,0.00043013,120]
[367021654,1750618355671,-460.0,0.00043013,120]
[367021655,1750618355721,-460.0,0.00043013,120]
[367021656,1750618355771,-460.0,0.00043013,120]
[367021657,1750618355824,-2867.12,0.00043013,120]
[367021658,1750618355876,-586.65,0.00043013,120]
[367021659,1750618355927,-1409.36,0.00043013,120]
[367021660,1750618355977,-471.05,0.00043013,120]
[367021661,1750618356026,-633.38,0.00043013,120]
[367021662,1750618356075,-410.27326716,0.00043013,120]
[367021663,1750618356128,-460.0,0.00043013,120]
[367021664,1750618356179,-506.27,0.00043013,120]
[367021665,1750618356230,-2000.81,0.00043013,120]
[367021666,1750618356279,-688.84,0.00043013,120]
[367021667,1750618356327,-460.0,0.00043013,120]
[367021668,1750618356379,-482.19,0.00043013,120]
[367021669,1750618356431,-460.0,0.00043013,120]
[367021670,1750618356486,-484.12,0.00043013,120]
[367021671,1750618356538,-460.0,0.00043013,120]
[367021672,1750618356594,-554.76,0.00043013,120]
[367021673,1750618356648,-460.0,0.00043013,120]
[367021674,1750618356703,-494.79,0.00043013,120]
[367021675,1750618356755,-460.0,0.00043013,120]
[367021676,1750618356807,-460.0,0.00043013,120]
[367021677,1750618356859,-2426.2,0.00043013,120]
[367021678,1750618356909,-1143.89,0.00043013,120]
[367021679,1750618356960,-460.0,0.00043013,120]
[367021680,1750618357010,-1046.85,0.00043013,120]
[367021681,1750618357059,-925.84,0.00043013,120]
[367021682,1750618357108,-597.73,0.00043013,120]
[367021683,1750618357160,-11265.91,0.00043013,120]
[367021684,1750618357209,-460.0,0.00043013,120]
[367021685,1750618357258,-6160.7,0.00043013,120]
[367021686,1750618357309,-482.60821174,0.00043013,120]
[367021687,1750618357358,-491.04,0.00043013,120]
[367021688,1750618357408,-1189.67,0.00043013,120]
[367021689,1750618357459,-1798.04,0.00043013,30]
[367021690,1750618357513,-470.58,0.00043013,120]
[367021691,1750618357564,-3579.12,0.00043013,120]
[367021692,1750618357615,-1249.6,0.00043013,120]
[367021693,1750618357669,-10666.48,0.00043013,120]
[367021694,1750618357719,-170.91801991,0.00043013,120]
[367021695,1750618357770,-1777.05,0.00043013,120]
[367021696,1750618357820,-582.51,0.00043013,120]
[367021697,1750618357867,-460.0,0.00043013,120]
[367021698,1750618357915,-1267.32,0.00043013,120]
[367021699,1750618357965,-544.23,0.00043013,120]
[367021700,1750618358016,-493.71797296,0.00043013,120]
[367021701,1750618358067,-460.0,0.00043013,120]
[367021702,1750618358119,-460.0,0.00043013,120]
[367021703,1750618358172,-460.0,0.00043013,120]
[367021704,1750618358232,-485.02,0.00043013,120]
[367021705,1750618358284,-2652.41,0.00043013,120]
[367021706,1750618358335,-460.0,0.00043013,120]
[367021707,1750618358385,-564.20521359,0.00043013,120]
[367021708,1750618358436,-579.35,0.00043013,120]
[367021709,1750618358487,-724.13,0.00043013,120]
[367021710,1750618358539,-460.0,0.00043013,120]
[367021711,1750618358597,-475.23,0.00043013,120]
[367021712,1750618358647,-3283.97,0.00043013,120]
[367021713,1750618358700,-460.0,0.00043013,120]
[367021714,1750618358751,-8136.01,0.00043013,120]
[367021715,1750618358802,-1594.18,0.00043013,120]
[367021716,1750618358850,-460.0,0.00043013,120]
[367021717,1750618358898,-460.0,0.00043013,120]
[367021718,1750618358944,-683.88,0.00043013,120]
[367021719,1750618358988,-528.57,0.00043013,120]
[367021720,1750618359033,-3929.24,0.00043013,120]
[367021721,1750618359078,-390.0,0.00043013,30]
[367021722,1750618359127,-1876.21,0.00043013,120]
[367021723,1750618359174,-460.0,0.00043013,120]
[367021724,1750618359219,-603.53,0.00043013,120]
[367021725,1750618359265,-460.0,0.00043013,120]
[367021726,1750618359315,-6261.38,0.00043013,120]
[367021727,1750618359368,-769.92,0.00043013,120]
[367021728,1750618359420,-7683.05,0.00043013,120]
[367021729,1750618359471,-460.0,0.00043013,120]
[367021730,1750618359522,-460.0,0.00043013,120]
[367021731,1750618359571,-666.34,0.00043013,120]
[367021732,1750618359623,-460.0,0.00043013,120]
[367021733,1750618359675,-460.0,0.00043013,120]
[367021734,1750618359869,-12955.9,0.00043013,120]
[367021735,1750618359919,-152.0,0.00043036,31]
[367021736,1750618359966,-206.0,0.000432,30]
[367021737,1750618360014,-518.48,0.00043287,120]
[367021738,1750618360066,-596.84243719,0.00043287,120]
[367021739,1750618360114,-460.0,0.00043287,120]
[367021740,1750618360164,-460.0,0.00043287,120]
[367021741,1750618360212,-460.0,0.00043287,120]
[367021742,1750618360260,-1226.97,0.00043287,120]
[367021743,1750618360312,-259.76825158,0.00043287,120]
[367021744,1750618360364,-460.0,0.00043287,120]
[367021745,1750618360415,-460.0,0.00043287,120]
[367021746,1750618360468,-460.0,0.00043287,120]
[367021747,1750618360519,-460.0,0.00043287,120]
[367021748,1750618360569,-460.0,0.00043287,120]
[367021749,1750618360622,-460.0,0.00043287,120]
[367021750,1750618360675,-460.0,0.00043287,120]
[367021751,1750618360725,-460.0,0.00043287,120]
[367021752,1750618360777,-208.15845773,0.00043287,120]
[367021754,1750618369225,425.529612,0.00013699,2]
[367021755,1750618558639,160.0,0.00018055,3]
[367021756,1750618607525,194.35669063,0.00019676,2]
[367021757,1750618622554,1159.21836837,0.000201,2]
[367021764,1750618825419,433.18177542,0.000201,2]
[367021765,1750618873530,151.0,0.000201,2]
[367021768,1750618888287,187.961866,0.00020087,2]
[367021769,1750618899974,1465.7122459,0.00019668,2]
[367021770,1750618912183,526.25286776,0.00020001,2]
[367021771,1750618978724,151.0,0.000201,2]
[367021772,1750619012133,1483.0,0.00022234,120]
[367021773,1750619012565,1483.0,0.00022224,120]
[367021774,1750619013004,1483.0,0.00022214,120]
[367021775,1750619013437,1483.0,0.00024889,120]
[367021776,1750619013874,1483.0,0.00024879,120]
[367021777,1750619014412,1483.0,0.00024869,120]
[367021778,1750619059041,1488.0867282,0.00019399,2]
[367021779,1750619094068,1077.19812407,0.00020085,2]
[367021780,1750619103155,1628.82,0.00024658,120]
[367021781,1750619123832,157.95048976,0.00020084,2]
[367021782,1750619125633,151.0,0.000201,2]
[367021783,1750619127296,10000.0,0.00025,60]
[367021784,1750619132678,150.5,0.00022234,120]
[367021785,1750619133117,150.5,0.00022224,120]
[367021786,1750619133561,296.02,0.00022214,120]
[367021787,1750619148545,178.74142542,0.000201,2]
[367021788,1750619160110,-221.45871336,0.00020184,2]
[367021789,1750619163092,154.0,0.00025,120]
[367021790,1750619193445,239.96926722,0.00019233,2]
[367021791,1750619193467,67.63208538,0.00019233,2]
[367021792,1750619218261,257.03120754,0.00020001,2]
[367021793,1750619242102,-300.0,0.00020183,2]
[367021794,1750619242122,-300.0,0.00020184,2]
[367021795,1750619242144,-300.0,0.00020184,2]
[367021796,1750619242166,-1200.0,0.00020184,2]
[367021797,1750619242186,-300.0,0.00020184,2]
[367021798,1750619242207,-151.0,0.00020184,2]
[367021799,1750619242228,-500.0,0.00020184,2]
[367021800,1750619242250,-607.405969,0.00020184,2]
[367021801,1750619242273,-500.0,0.00020184,2]
[367021802,1750619242295,-500.0,0.00020184,2]
[367021803,1750619242317,-500.0,0.00020184,2]
[367021804,1750619242338,-422.61142869,0.00020184,2]
[367021805,1750619248154,-77.38857131,0.00020184,2]
[367021806,1750619248176,-413.24428784,0.00020184,2]
[367021807,1750619248198,-500.0,0.00020184,2]
[367021808,1750619248221,-500.0,0.00020184,2]
[367021809,1750619248245,-500.0,0.00020184,2]
[367021810,1750619248266,-500.0,0.00020184,2]
[367021811,1750619248287,-162.59933981,0.00020184,2]
[367021812,1750619248309,-500.0,0.00020184,2]
[367021813,1750619248330,-500.0,0.00020184,2]
[367021814,1750619248354,-500.0,0.00020184,2]
[367021815,1750619248377,-500.0,0.00020184,2]
[367021816,1750619248397,-388.76613493,0.00020184,2]
[367021817,1750619248421,-500.0,0.00020184,2]
[367021818,1750619248442,-500.0,0.00020184,2]
[367021819,1750619248465,-500.0,0.00020184,2]
[367021820,1750619248488,-500.0,0.00020184,2]
[367021821,1750619248509,-500.0,0.00020184,2]
[367021822,1750619248530,-500.0,0.00020184,2]
[367021823,1750619248553,-628.06950371,0.00020184,2]
[367021824,1750619248576,-500.0,0.00020184,2]
[367021825,1750619248598,-500.0,0.00020184,2]
[367021826,1750619248619,-500.0,0.00020184,2]
[367021827,1750619248640,-500.0,0.00020184,2]
[367021828,1750619248665,-500.0,0.00020184,2]
[367021829,1750619248687,-500.0,0.00020184,2]
[367021830,1750619248708,-500.0,0.00020184,2]
[367021831,1750619248728,-500.0,0.00020184,2]
[367021832,1750619248751,-500.0,0.00020184,2]
[367021833,1750619248776,-500.0,0.00020184,2]
[367021834,1750619248799,-500.0,0.00020184,2]
[367021835,1750619248821,-500.0,0.00020184,2]
[367021836,1750619248844,-500.0,0.00020184,2]
[367021837,1750619248869,-500.0,0.00020184,2]
[367021838,1750619248890,-262.73759536,0.00020184,2]
[367021839,1750619248912,-500.0,0.00020184,2]